Workbook

Sheet Problem
A1: Free Practice Problems for Casualty Actuarial Society Exam 7
A2: G. Stolyarov II, CPCU, ARe, ARC, AIS, AIE
A3: http://rationalargumentator.com/actuaryguide/7-study-guide.html
A4: Inexhaustible Exam-Style Practice
A5: Based on Problem 10(a) and (c) - Spring 2011 CAS Exam 7
A7: You are given the following information for a line of business for a reinsurance company as of December 31, 2044:
A9: Calendar-Accident Year | B9: Earned Risk Pure Premium | C9: Adjusted Premium | D9: Aggregate Reported Loss | E9: Aggregate Loss Report Lag | F9: Chain-Ladder IBNR
A10: 2039 | B10: =25626*D22+1000 -> 14669.52393 | C10: =1.07*B10 -> 15696.39061 | D10: =0.81*C10+124 -> 12838.07639 | E10: =1-0.1*D22 -> 0.946657598 | F10: =2150*D22 -> 1146.861643
A11: 2040 | B11: =15125*D22+6697 -> 14765.0383 | C11: =1.07*B11 -> 15798.59098 | D11: =0.14*C11+8000*D22 -> 6479.194896 | E11: =1-0.2*D22-0.02 -> 0.873315196 | F11: =4*F10-240*D22 -> 4459.424806
A12: 2041 | B12: =15150*(1-D22)+2000/D22 -> 10817.98857 | C12: =1.07*B12 -> 11575.24777 | D12: =7776-5400*(1-D22) -> 5256.489707 | E12: =1-0.3*D22-0.01 -> 0.8299727941 | F12: =8899*D22-95 -> 4651.940352
A13: 2042 | B13: =88950*D22^2 -> 25309.9384 | C13: =1.07*B13 -> 27081.63409 | D13: =8240+21540*D22 -> 19729.95339 | E13: =1-0.4*D22-0.05 -> 0.7366303921 | F13: =41400*D22*(1-D22) -> 10303.74936
A14: 2043 | B14: =15210*D22*(1-D22)+13000 -> 16785.50792 | C14: =1.02*B14 -> 17121.21808 | D14: =12510-2510*D22 -> 11171.10571 | E14: =1-0.5*D22-0.1 -> 0.6332879901 | F14: =F13+2000*D22+250 -> 11620.5974
A15: 2044 | B15: =21515-5160*D22 -> 18762.53206 | C15: =B15 -> 18762.53206 | D15: =16161+1360*D22-9900*(1-D22)^2 -> 14731.29453 | E15: =1-0.3-0.6*D22 -> 0.3799455881 | F15: =12500*(1+D22)-2500 -> 16667.80025
A16: TOTAL | B16: =SUM(B10:B15) -> 101110.5292 | C16: =SUM(C10:C15) -> 106035.6136 | D16: =SUM(D10:D15) -> 70206.11462 | F16: =SUM(F10:F15) -> 48850.37382
A17: (a) Use the Stanard-Bϋhlmann method to estimate the total IBNR.
A18: (c) Use a credibility-weighted combination of the Stanard-Bϋhlmann and chain-ladder estimates with a linear function of the report lag as the credibility weight to calculate a total IBNR estimate.
B19: For the chain-ladder estimate, use a credibility factor of | F19: =D22 -> 0.5334240198
A21: TO RE-RANDOMIZE THE VALUES FOR THIS PROBLEM, CLICK ON THE FORMULA IN THE RED BOX AND PRESS "ENTER". That is all you need to do.
D22: =StaticRand() -> 0.5334240198

Sheet Solution
A1: Inexhaustible Exam-Style Practice
A2: Based on Problem 10(a) and (c) - Spring 2011 CAS Exam 7
A3: Solution (a)
A4: Stanard-Bϋhlmann Expected Loss Ratio (S-B ELR) = Total Reported Losses/∑[Adjusted Premium(k) * Report Lag(k)] for all years k under consideration.
A6: Calendar-Accident Year | B6: (1) Adjusted Premium | C6: (2) Aggregate Loss Report Lag | D6: (3) = (1)*(2)
A7: 2039 | B7: =Problem!C10 -> 15696.39061 | C7: =Problem!E10 -> 0.946657598 | D7: =B7*C7 -> 14859.10743
A8: 2040 | B8: =Problem!C11 -> 15798.59098 | C8: =Problem!E11 -> 0.873315196 | D8: 13797.14958
A9: 2041 | B9: =Problem!C12 -> 11575.24777 | C9: =Problem!E12 -> 0.8299727941 | D9: 9607.140733
A10: 2042 | B10: =Problem!C13 -> 27081.63409 | C10: =Problem!E13 -> 0.7366303921 | D10: 19949.15473
A11: 2043 | B11: =Problem!C14 -> 17121.21808 | C11: =Problem!E14 -> 0.6332879901 | D11: 10842.66178
A12: 2044 | B12: =Problem!C15 -> 18762.53206 | C12: =Problem!E15 -> 0.3799455881 | D12: 7128.741277
C13: TOTAL | D13: =SUM(D7:D12) -> 76183.95554
A15: S-B ELR = | B15: =Problem!D16 -> 70206.11462 | C15: / | D15: =D13 -> 76183.95554 | E15: = | F15: =B15/D15 -> 0.9215341226
A16: S-B IBNR (for all years) = (S-B ELR)*(Total Adjusted Premium) - (Total Reported Losses)
A17: S-B IBNR = | B17: =F15 -> 0.9215341226 | C17: * | D17: =Problem!C16 -> 106035.6136 | E17: - | F17: =Problem!D16 -> 70206.11462 | G17: = | H17: =B17*D17-F17 -> 27509.3215
H18: ↑ ANSWER
A19: Solution (c)
A20: For each year, Credibility-Weighted IBNR = (Credibility Factor)*(Report Lag)*(Chain-Ladder IBNR) + [1 - (Credibility Factor)*(Report Lag)]*(S-B IBNR)
A22: Calendar-Accident Year | B22: (1) Credibility Factor | C22: (2) Report Lag | D22: (3) = (1)*(2) | E22: (4) Chain-Ladder IBNR | F22: (5) S-B IBNR = S-B ELR * (Adjusted Premium) * (1- Report Lag) | G22: (6) Credibility-Weighted IBNR = (3)*(4) + (1-(3))*(5)
A23: 2039 | B23: =Problem!F19 -> 0.5334240198 | C23: =Problem!E10 -> 0.946657598 | D23: =B23*C23 -> 0.5049699013 | E23: =Problem!F10 -> 1146.861643 | F23: =F15*Problem!C10*(1-C23) -> 771.5850182 | G23: =D23*E23+(1-D23)*F23 -> 961.0884182
A24: 2040 | B24: =Problem!F19 -> 0.5334240198 | C24: =Problem!E11 -> 0.873315196 | D24: 0.4658473024 | E24: =Problem!F11 -> 4459.424806 | F24: =F15*Problem!C11*(1-C24) -> 1844.396546 | G24: 3062.600406
A25: 2041 | B25: =Problem!F19 -> 0.5334240198 | C25: =Problem!E12 -> 0.8299727941 | D25: 0.4427274241 | E25: =Problem!F12 -> 4651.940352 | F25: =F15*Problem!C12*(1-C25) -> 1813.677791 | G25: 3070.254464
A26: 2042 | B26: =Problem!F19 -> 0.5334240198 | C26: =Problem!E13 -> 0.7366303921 | D26: 0.3929363449 | E26: =Problem!F13 -> 10303.74936 | F26: =F15*Problem!C13*(1-C26) -> 6572.823101 | G26: 8038.83963
A27: 2043 | B27: =Problem!F19 -> 0.5334240198 | C27: =Problem!E14 -> 0.6332879901 | D27: 0.3378110254 | E27: =Problem!F14 -> 11620.5974 | F27: =F15*Problem!C14*(1-C27) -> 5785.903865 | G27: 7756.927672
A28: 2044 | B28: =Problem!F19 -> 0.5334240198 | C28: =Problem!E15 -> 0.3799455881 | D28: 0.2026721029 | E28: =Problem!F15 -> 16667.80025 | F28: =F15*Problem!C15*(1-C28) -> 10720.93518 | G28: 11926.19883
F29: TOTAL | G29: =SUM(G23:G28) -> 34815.90942
G30: ↑ ANSWER
